bitfinex/quotes_ETHUSD_20260119
["timestamp","ask_amount","ask_price","bid_price","bid_amount"]
[1768832330930,0.0008016,3212.6,3212.4,2.2300734]
[1768832331998,0.0008016,3212.6,3212.4,0.48573432]
[1768832332203,0.0008016,3212.6,3212.5,1.74433908]
[1768832333123,0.00080032,3213.2,3212.6,1.67419405]
[1768832333324,0.00080032,3213.2,3212.7,1.67419405]
[1768832333751,4.72568476,3213.2,3212.7,1.67419405]
[1768832334207,1.6127198,3213.1,3212.6,0.52727688]
[1768832334403,1.6127198,3213.1,3212.5,0.5128012]
[1768832334404,1.6127198,3213.1,3212.5,2.18699525]
[1768832334601,1.6127198,3213.1,3212.6,1.67419405]
[1768832334909,4.72498596,3213.1,3212.6,1.67419405]
[1768832335120,1.6127198,3213.1,3212.6,1.67419405]
[1768832335846,1.6127198,3213.0,3212.6,1.67419405]
[1768832336050,1.6127198,3213.0,3212.5,0.5128012]
[1768832336251,1.6127198,3212.8,3212.2,0.00080168]
[1768832337453,1.6127198,3212.7,3212.2,0.00080168]
[1768832339660,1.6127198,3212.7,3212.2,1.67499573]
[1768832341044,1.6127198,3212.7,3212.2,4.78809641]
[1768832342748,1.6127198,3212.7,3212.2,5.57822536]
[1768832342938,1.6127198,3212.7,3212.5,0.002]
[1768832343549,0.0008012,3212.9,3212.5,1.67619405]
[1768832347244,1.613521,3212.9,3212.5,0.002]
[1768832348380,1.6127198,3212.8,3212.2,0.00080168]
[1768832350263,3.11258683,3212.8,3212.2,0.00080168]
[1768832350463,1.6127198,3212.7,3212.2,0.00080168]
[1768832354789,1.6127198,3212.7,3212.5,0.002]
[1768832354951,0.001,3212.6,3212.5,0.002]
[1768832355691,0.001,3212.6,3212.5,1.67619405]
[1768832355891,0.0008012,3212.9,3212.6,1.67419405]
[1768832357085,3.8,3213.1,3212.7,1.67419405]
[1768832359256,3.8,3213.1,3212.8,1.67419405]
[1768832360176,0.00080032,3213.2,3212.8,1.67419405]
[1768832361855,1.61352012,3213.2,3212.8,1.67419405]
[1768832362056,1.61352012,3213.2,3212.8,5.31661791]
[1768832362293,1.61352012,3213.2,3212.8,2.20408488]
[1768832362497,1.61352012,3213.2,3212.8,1.67419405]
[1768832363090,1.61352012,3213.2,3212.8,4.78671841]
[1768832363401,1.61352012,3213.2,3212.8,4.78673924]
[1768832363561,1.61352012,3213.2,3212.8,1.67419405]
[1768832363762,1.61352012,3213.2,3212.8,4.78672958]
[1768832364262,1.61352012,3213.2,3212.8,1.67419405]
[1768832364794,0.00080192,3213.6,3212.9,1.53365857]
[1768832364795,1.53919944,3213.5,3212.9,1.53365857]
[1768832364955,4.65183288,3213.6,3212.9,1.53365857]
[1768832365156,1.53919944,3213.5,3212.9,1.53365857]
[1768832365496,1.53919944,3213.5,3212.8,0.0008004]
[1768832365695,1.53919944,3213.5,3212.8,1.53445897]
[1768832365896,1.53919944,3213.3,3212.8,1.73910487]
[1768832366188,1.53919944,3213.3,3212.8,0.0008004]
[1768832367306,1.53919944,3213.1,3212.8,0.0008004]
[1768832370014,1.53919944,3213.0,3212.8,0.0008004]
[1768832370513,1.53919944,3213.0,3212.7,0.512]
[1768832371376,1.53919944,3213.0,3212.5,0.00280128]
[1768832371581,1.53919944,3213.0,3212.5,1.53645985]
[1768832371883,1.53919944,3212.9,3212.5,0.00280128]
[1768832372273,1.53919944,3212.8,3212.5,0.00280128]
[1768832373102,4.65160304,3213.0,3212.5,1.53645985]
[1768832373671,1.53919944,3212.9,3212.5,1.53645985]
[1768832373984,1.53919944,3212.9,3212.5,0.00280128]
[1768832374368,1.53919944,3212.7,3212.2,0.00080168]
[1768832375502,1.53919944,3212.7,3212.2,1.53446025]
[1768832376125,1.53919944,3212.7,3212.2,0.00080168]
[1768832376400,1.53919944,3212.4,3212.2,0.00080168]
[1768832376981,1.53919944,3212.4,3212.1,0.002]
[1768832377176,6.22568092,3212.5,3211.6,2.04565857]
[1768832377177,1.53919944,3212.2,3211.6,2.04565857]
[1768832377505,1.53919944,3212.2,3211.6,1.53365857]
[1768832377705,1.53919944,3212.2,3211.5,0.0008008]
[1768832378407,1.53919944,3212.0,3211.5,0.0008008]
[1768832379989,1.53919944,3212.0,3211.5,1.37960944]
[1768832380200,1.38352466,3212.2,3211.6,1.37880864]
[1768832380771,1.38352466,3212.2,3211.7,1.37880864]
[1768832381003,0.00080088,3212.3,3211.7,1.37880864]
[1768832381505,1.38432554,3212.3,3211.7,1.37880864]
[1768832382204,0.00080168,3212.6,3212.0,1.37880864]
[1768832382403,3.11356027,3212.6,3212.0,1.37880864]
[1768832382568,1.38352466,3212.5,3212.0,1.37880864]
[1768832384207,0.00080168,3212.6,3212.0,1.37880864]
[1768832385102,0.00080168,3212.6,3212.0,1.82811289]
[1768832385286,0.00080168,3212.6,3212.1,1.37880864]
[1768832386481,1.38432634,3212.6,3212.1,1.37880864]
[1768832386682,4.49713177,3212.6,3212.1,1.37880864]
[1768832387445,1.38432634,3212.6,3212.1,1.37880864]
[1768832387906,4.49710093,3212.6,3212.1,1.37880864]
[1768832388693,1.38432634,3212.6,3212.1,1.37880864]
[1768832389914,0.00080168,3212.6,3212.1,1.37880864]
[1768832390578,0.00080168,3212.6,3212.2,1.37880864]
[1768832390797,0.00080168,3212.6,3212.3,1.37880864]
[1768832390990,0.001,3212.4,3212.3,1.37880864]
[1768832391208,0.00080168,3212.6,3212.3,1.37880864]
[1768832391635,0.00180128,3212.9,3212.3,1.37880864]
[1768832391819,0.00180128,3212.9,3212.5,1.37880864]
[1768832393937,1.37044629,3212.9,3212.4,0.7605023]
[1768832394114,1.37044629,3212.9,3212.4,2.15874179]
[1768832394731,1.37044629,3212.9,3212.2,0.51280176]
[1768832395539,1.36864501,3212.8,3212.2,0.51280176]
[1768832397643,1.36864501,3212.8,3212.2,1.91104125]
[1768832397807,1.36864501,3212.8,3212.2,5.02416646]
[1768832398430,1.36864501,3212.8,3212.3,1.39823949]
[1768832399742,0.00180128,3212.9,3212.4,1.39823949]
[1768832400610,1.37044629,3212.9,3212.4,1.39823949]
[1768832401324,1.37044629,3212.9,3212.3,3.66034204]
[1768832401837,1.37044629,3212.9,3212.4,1.39823949]
[1768832402857,1.37044629,3212.9,3212.6,0.002]
[1768832403323,4.48290143,3212.9,3212.6,0.002]
[1768832403524,1.36864501,3212.8,3212.6,0.002]
[1768832403946,1.36864501,3212.7,3212.3,0.002]
[1768832405663,3.11266384,3212.7,3212.3,0.002]
[1768832405830,1.36864501,3212.6,3212.3,0.002]
[1768832409632,0.00180128,3212.9,3212.3,1.40023949]
[1768832410028,0.00180128,3212.9,3212.5,1.39823949]
[1768832410223,0.00180128,3212.9,3212.6,1.39823949]
[1768832410642,0.0018004,3213.2,3212.7,1.39823949]
[1768832413147,0.0018004,3213.2,3212.6,0.512]
[1768832413148,1.37044541,3213.2,3212.6,0.512]
[1768832415722,1.37044541,3213.2,3212.6,0.514]
[1768832415923,1.36964501,3212.9,3212.6,0.514]
[1768832416349,1.36964501,3212.9,3212.6,2.41483265]
[1768832416350,0.001,3212.9,3212.6,2.41483265]
[1768832416529,0.001,3212.9,3212.7,1.39823949]
[1768832416733,0.0018004,3213.2,3212.7,1.39823949]
[1768832417467,1.36864501,3213.5,3212.9,1.39823949]
[1768832418032,4.48057946,3213.5,3212.9,1.39823949]
[1768832418232,4.48061651,3213.4,3212.9,1.39823949]
[1768832418431,1.36864501,3213.3,3212.8,0.00080048]
[1768832419154,3.1119715,3213.4,3212.8,1.39903997]
[1768832419155,3.11200746,3213.4,3212.8,1.39903997]
[1768832419356,0.00080192,3213.9,3213.3,1.39823949]
[1768832419556,1.36944693,3213.9,3213.4,0.512]
[1768832419852,1.36944693,3213.9,3213.4,2.10134364]
[1768832420159,1.36944693,3213.9,3213.4,0.70310415]
[1768832420455,1.36944693,3213.9,3213.2,0.000802]
[1768832420456,1.36864501,3213.8,3213.2,0.000802]
[1768832422470,1.36864501,3213.6,3213.2,0.000802]
[1768832422761,1.36864501,3213.6,3212.8,0.00080048]
[1768832422762,1.36864501,3213.4,3212.8,0.00080048]
[1768832423127,1.3145175,3213.1,3212.8,0.00080048]
[1768832423861,1.3145175,3213.1,3212.6,0.002]
[1768832424231,0.00080048,3213.2,3212.6,1.3889159]
[1768832424555,4.42748031,3213.2,3212.6,1.3889159]
[1768832424725,1.3145175,3213.1,3212.6,0.002]
[1768832425336,1.3145175,3213.0,3212.6,0.002]
[1768832426128,1.31531798,3213.2,3212.6,1.3889159]
[1768832426340,0.00080048,3213.2,3212.6,1.3889159]
[1768832427174,1.31531798,3213.2,3212.6,1.3889159]
[1768832427664,0.00080048,3213.2,3212.7,1.3869159]
[1768832427870,0.00080048,3213.2,3212.8,1.3869159]
[1768832428222,0.00080048,3213.2,3212.9,0.002]
[1768832428628,0.00080048,3213.2,3212.9,1.3889159]
[1768832429175,0.001,3213.5,3213.0,1.3869159]
[1768832429363,3.11287341,3213.5,3213.0,1.3869159]
[1768832429564,1.3155175,3213.5,3213.0,1.3869159]
[1768832429960,4.42739198,3213.5,3213.0,1.3869159]
[1768832430587,4.42739198,3213.5,3212.9,0.002]
[1768832430588,1.3145175,3213.4,3212.9,0.002]
[1768832430883,4.42649729,3213.4,3212.9,1.3889159]
[1768832431098,1.3145175,3213.3,3212.9,0.002]
[1768832433166,1.3145175,3213.2,3212.9,0.002]
[1768832435864,1.3145175,3213.1,3212.9,0.002]
[1768832437975,4.42663017,3213.3,3212.9,0.002]
[1768832438176,3.11211267,3213.3,3212.9,0.002]
[1768832438381,1.3145175,3213.2,3212.9,0.002]
[1768832439881,1.3188844,3213.1,3212.9,0.002]
[1768832440290,1.3188844,3213.1,3212.8,0.00080056]
[1768832441667,1.3188844,3213.0,3212.8,0.00080056]
[1768832441990,1.3188844,3213.0,3212.5,0.51480136]
[1768832442290,1.3188844,3213.0,3212.5,0.00280136]
[1768832443793,1.3188844,3212.9,3212.5,0.00280136]
[1768832444194,1.3188844,3212.9,3212.5,1.37379893]
[1768832445293,1.85751365,3212.9,3212.5,1.37379893]
[1768832445481,5.1188844,3213.1,3212.5,1.37379893]
[1768832446093,1.3188844,3213.0,3212.5,1.37379893]
[1768832447172,6.91226495,3213.1,3212.6,1.37099757]
[1768832447173,3.8,3213.1,3212.6,1.37099757]
[1768832447530,1.3196864,3213.6,3212.8,0.00080064]
[1768832448074,1.3188844,3213.4,3212.8,0.00080064]
[1768832449694,0.001,3213.5,3212.8,0.00080064]
[1768832450674,1.3188844,3213.4,3212.8,0.00080064]
[1768832450994,1.3198844,3213.5,3212.8,0.00080064]
[1768832451185,0.001,3213.5,3212.8,0.67462397]
[1768832452105,0.001,3213.5,3212.9,6.22490584]
[1768832452486,0.001,3213.5,3213.1,0.002]
[1768832452686,0.001,3213.2,3213.1,0.514]
[1768832452905,0.001,3213.5,3213.1,0.514]
[1768832454580,0.001,3213.5,3213.2,0.36263066]
[1768832455305,1.24784307,3213.5,3213.2,0.36263066]
[1768832455510,1.24784307,3213.5,3213.1,0.514]
[1768832456314,1.24784307,3213.5,3213.1,3.6262535]
[1768832456479,0.001,3213.5,3213.1,3.6262535]
[1768832457112,0.001,3213.5,3213.1,0.514]
[1768832458091,0.001,3213.5,3213.1,3.6262486]
[1768832458291,0.001,3213.5,3213.2,0.36262486]
[1768832459689,1.24784307,3213.5,3213.1,0.514]
[1768832462489,1.24684307,3213.4,3213.1,0.514]
[1768832462814,1.24684307,3213.4,3213.1,0.002]
[1768832464995,0.001,3213.2,3213.1,0.002]
[1768832469720,0.001,3213.5,3213.1,0.002]
[1768832470397,0.001,3213.5,3213.2,0.512]
[1768832471410,0.001,3213.5,3213.2,0.87462545]
[1768832471797,1.24764499,3213.9,3213.2,3.62494848]
[1768832472004,0.00080192,3213.9,3213.2,3.62494848]
[1768832472406,0.00080192,3213.9,3213.2,6.73711081]
[1768832472634,1.24764499,3213.9,3213.2,0.51280208]
[1768832474302,1.24764499,3213.9,3213.2,3.62494013]
[1768832474503,1.24764499,3213.9,3213.3,0.36269401]
[1768832475108,0.00080192,3213.9,3213.3,0.36269401]
[1768832476540,0.00080192,3213.9,3213.4,3.11196863]
[1768832476724,0.001,3213.6,3213.4,3.11196863]
[1768832476925,0.00080192,3213.9,3213.4,3.11196863]
[1768832477119,0.00080192,3213.9,3213.5,0.34746626]
[1768832477915,0.00080192,3213.9,3213.6,0.512]
[1768832478532,0.00080192,3213.9,3213.6,3.62374057]
[1768832479007,0.00080192,3213.9,3213.6,0.512]
[1768832479208,0.00080192,3213.9,3213.6,3.62376677]
[1768832479436,0.00080192,3213.9,3213.7,0.3971233]
[1768832480820,0.00080192,3213.9,3213.7,3.50877365]
[1768832481142,0.00080192,3213.9,3213.7,0.3971233]
[1768832482434,0.00080192,3213.9,3213.6,3.62376285]
[1768832482641,0.00080192,3213.9,3213.6,0.512]
[1768832483625,0.00080192,3213.9,3213.6,3.62377297]
[1768832485834,1.06372614,3214.2,3213.8,0.00080224]
[1768832486238,1.21912206,3214.4,3213.8,0.09552707]
[1768832486436,1.21912206,3214.4,3213.8,0.77863457]
[1768832486814,1.21912206,3214.4,3213.9,0.09368433]
[1768832487009,1.21912206,3214.4,3213.8,0.68390974]
[1768832487317,1.21912206,3214.3,3213.8,0.00080224]
[1768832488854,1.21912206,3214.2,3213.8,0.00080224]
[1768832493154,1.21912206,3214.1,3213.8,0.00080224]
[1768832499931,1.21912206,3214.1,3213.8,0.00280224]
[1768832502255,1.32210279,3214.4,3213.8,0.08403263]
[1768832503122,1.32210279,3214.4,3213.8,0.00280224]
[1768832504352,3.11105671,3214.4,3213.8,0.00280224]
[1768832504658,1.32210279,3214.3,3213.8,0.00280224]
[1768832505757,1.32210279,3214.2,3213.8,0.00280224]
[1768832506461,1.32210279,3214.1,3213.6,0.512]
[1768832510468,3.11131605,3214.1,3213.6,0.512]
[1768832510672,1.32210279,3214.0,3213.6,0.512]
[1768832511571,1.32210279,3214.0,3213.9,0.002]
[1768832511744,1.32210279,3213.9,3213.6,0.512]
[1768832512476,1.32210279,3213.9,3213.2,0.00080208]
[1768832512477,1.32290479,3213.9,3213.2,0.00080208]
[1768832513252,1.19983766,3213.8,3213.2,0.59231456]
[1768832513658,1.19983766,3213.8,3213.2,0.00080208]
[1768832513861,1.19983766,3213.7,3213.2,0.00080208]
[1768832515652,1.19983766,3213.7,3213.2,0.59118952]
[1768832515853,1.19983766,3213.7,3213.2,3.70333202]
[1768832516393,1.19983766,3213.7,3213.2,0.59118952]
[1768832516690,1.19983766,3213.8,3213.2,3.70334637]
[1768832516985,1.19983766,3213.8,3213.2,0.59118952]
[1768832517860,1.19983766,3213.8,3213.3,0.58911286]
[1768832518259,1.19983766,3213.8,3213.4,0.58911286]
[1768832518460,0.000802,3213.9,3213.4,0.58911286]
[1768832518665,1.19983766,3213.8,3213.3,0.68163171]
[1768832520983,1.19983766,3213.8,3213.3,1.19363171]
[1768832521468,1.19983766,3213.8,3213.3,4.89425672]
[1768832521657,1.19983766,3213.8,3213.4,1.07810502]
[1768832522098,0.000802,3213.9,3213.5,0.58843182]
[1768832523104,0.001,3213.7,3213.5,3.7002728]
[1768832523667,0.000802,3213.9,3213.5,3.7002728]
[1768832525796,0.000802,3213.9,3213.6,0.5879413]
[1768832526000,0.000802,3213.9,3213.5,3.11184098]
[1768832526001,0.00080224,3214.2,3213.8,0.58778153]
[1768832527696,0.00080224,3214.2,3214.0,0.5876236]
[1768832529806,0.00080224,3214.2,3214.1,3.11129087]
[1768832530101,0.00080224,3214.2,3214.0,0.5876236]
[1768832530301,0.00080224,3214.2,3214.0,3.69899167]
[1768832530501,0.00080224,3214.2,3214.1,0.36989917]
[1768832533516,0.00080224,3214.2,3214.1,3.11129087]
[1768832533680,1.19983766,3214.8,3214.1,3.11129087]
[1768832534105,1.19983766,3214.8,3214.0,3.69793017]
[1768832534476,1.19983766,3214.7,3214.0,0.58656773]
[1768832534674,1.19983766,3214.7,3213.8,0.00080232]
[1768832534906,6.22134296,3214.8,3213.8,0.00080232]
[1768832534907,0.001,3213.9,3213.8,3.11238362]
[1768832535808,1.19983766,3214.1,3213.8,3.11238362]
[1768832536511,1.19983766,3214.1,3213.8,0.00080232]
[1768832537393,1.19983766,3214.7,3213.8,0.58694303]
[1768832537891,1.19983766,3214.6,3213.8,0.58694303]
[1768832538200,1.19983766,3214.6,3213.9,0.58600162]
[1768832538598,1.19983766,3214.6,3213.9,3.69742543]
[1768832540293,1.19983766,3214.6,3214.0,0.58572823]
[1768832540792,1.19983766,3214.6,3213.9,3.11142381]
[1768832540982,1.19983766,3214.6,3213.9,3.69703709]
[1768832541183,1.19983766,3214.6,3214.0,0.75416173]
[1768832541385,1.19983766,3214.6,3214.1,0.512]
[1768832542984,1.19983766,3214.6,3214.1,3.62325655]
[1768832543186,8.91979729,3215.2,3214.2,0.6533812]
[1768832543187,1.28740996,3215.1,3214.2,0.6533812]
[1768832543997,1.28740996,3215.1,3214.4,5.80953973]
[1768832544323,1.28740996,3215.1,3214.6,0.65325292]
[1768832544529,1.28740996,3215.4,3214.8,0.65325292]
[1768832544703,1.28740996,3215.4,3214.9,1.16525292]
[1768832544903,1.28740996,3215.4,3214.9,4.27572552]
[1768832545104,1.28740996,3215.4,3214.9,1.16525292]
[1768832545621,3.10961978,3215.9,3214.9,1.16525292]
[1768832545622,1.28740996,3215.6,3215.0,0.65312612]
[1768832546211,1.13140996,3215.6,3215.0,0.80900077]
[1768832546923,1.28740996,3215.5,3214.9,0.512]
[1768832547127,1.28740996,3215.4,3214.4,3.11094184]
[1768832547323,1.28740996,3215.4,3214.5,0.512]
[1768832547488,1.28740996,3215.4,3214.4,0.512]
[1768832548293,1.28740996,3215.4,3214.4,4.43173181]
[1768832549026,1.28740996,3215.2,3214.4,0.512]
[1768832549524,1.28740996,3215.2,3214.4,1.32046354]
[1768832550230,1.28740996,3215.1,3214.4,1.32046354]
[1768832550531,1.28740996,3215.1,3214.4,0.512]
[1768832550698,1.28740996,3215.1,3214.3,0.512]
[1768832551120,1.28740996,3214.9,3214.3,0.512]
[1768832553328,1.28740996,3214.8,3214.3,0.512]
[1768832554310,1.28740996,3215.0,3214.4,0.81071697]
[1768832554506,1.28740996,3215.0,3214.3,0.512]
[1768832555232,7.18777579,3215.1,3214.3,0.512]
[1768832555233,1.28740996,3214.8,3214.3,0.512]
[1768832558554,0.001,3214.5,3214.3,0.512]
[1768832559452,1.28840996,3214.5,3214.3,0.512]
[1768832560438,1.28840996,3214.5,3214.3,0.43141091]
[1768832560638,1.28675667,3214.4,3214.3,0.43141091]
[1768832562236,0.001,3214.5,3214.3,0.43141091]
[1768832563980,1.28675667,3214.8,3214.3,4.36277099]
[1768832564144,1.28675667,3215.0,3214.4,0.82027691]
[1768832565450,1.28675667,3215.1,3214.3,0.43141091]
[1768832565653,1.28675667,3215.0,3214.3,0.43141091]
[1768832565947,1.28675667,3214.8,3214.3,0.43141091]
[1768832568043,1.28675667,3214.7,3213.8,0.00080232]
[1768832568250,1.28675667,3214.7,3214.2,3.11117618]
[1768832569175,1.28675667,3214.7,3213.9,0.512]
[1768832569391,1.28675667,3214.7,3213.9,3.6234803]
[1768832569591,1.28675667,3214.7,3213.9,3.98590856]
[1768832570086,4.39746684,3214.7,3214.6,0.002]
[1768832570244,1.28675667,3214.6,3213.9,3.6234803]
[1768832570447,1.28675667,3214.6,3214.3,0.002]
[1768832571041,1.28675667,3215.0,3214.3,0.82775757]
[1768832572075,3.11051665,3214.9,3214.3,0.82775757]
[1768832572259,1.28675667,3214.8,3214.3,0.82775757]
[1768832572646,1.28675667,3214.9,3214.3,0.82775757]
[1768832572852,1.28675667,3214.9,3214.3,0.002]
[1768832573380,1.28675667,3214.9,3214.3,0.8299741]
[1768832574271,1.25330076,3214.8,3214.3,0.8299741]
[1768832574978,1.25330076,3214.8,3214.3,0.002]
[1768832576275,1.25330076,3214.6,3214.3,0.002]
[1768832578473,1.25330076,3214.6,3213.8,0.51280232]
[1768832578474,1.25330076,3214.3,3213.8,0.00080232]
[1768832578670,5.80953973,3214.4,3213.8,0.00080232]
[1768832578671,1.25330076,3214.1,3213.8,0.00080232]
[1768832579760,1.25330076,3214.1,3213.5,0.00080208]
[1768832580389,1.25330076,3213.9,3213.5,0.00080208]
[1768832582872,1.25330076,3213.9,3213.8,0.002]
[1768832583198,1.68976432,3213.9,3213.8,0.002]
[1768832583373,1.25330076,3213.9,3213.8,0.002]
[1768832583570,4.36478524,3213.9,3213.8,0.002]
[1768832583771,4.36478524,3213.9,3213.5,0.00080208]
[1768832583772,1.25330076,3213.8,3213.5,0.00080208]
[1768832584569,1.25330076,3213.8,3213.2,0.83908609]
[1768832584570,1.25330076,3213.6,3213.2,0.00080208]
[1768832584769,1.25330076,3213.4,3213.2,0.00080208]
[1768832585786,1.25330076,3213.2,3212.8,0.00280064]
[1768832590803,0.43649789,3213.5,3212.8,0.9267244]
[1768832591007,0.00080208,3213.6,3212.8,0.9267244]
[1768832591806,1.25410284,3213.6,3212.8,0.9267244]
[1768832592791,1.25410284,3213.6,3213.0,0.92511584]
[1768832593796,1.25410284,3213.6,3212.8,1.44050228]
[1768832593983,1.25330076,3213.5,3212.8,0.51480064]
[1768832594185,1.25330076,3213.3,3212.8,0.51480064]
[1768832596007,1.25330076,3213.3,3212.8,1.44165375]
[1768832596202,0.00080208,3213.6,3212.9,0.92685311]
[1768832597617,1.25410284,3213.6,3213.0,0.9275049]
[1768832600434,1.25410284,3213.6,3212.8,3.6273386]
[1768832600604,1.25410284,3213.6,3212.8,4.30134514]
[1768832600798,1.25410284,3213.6,3212.8,0.00280064]
[1768832601000,1.25330076,3213.5,3212.8,0.00280064]
[1768832602391,1.25330076,3213.4,3212.8,0.00280064]
[1768832602799,1.29230031,3213.3,3212.8,0.00280064]
[1768832603213,1.29230031,3213.3,3212.5,0.51480136]
[1768832603410,1.29230031,3213.1,3212.5,0.51480136]
[1768832604127,0.79230031,3213.1,3212.5,0.51480136]
[1768832605493,1.29230031,3213.0,3212.5,0.51480136]
[1768832606311,1.29230031,3213.0,3212.5,0.00280136]
[1768832606824,2.00489805,3213.2,3212.8,0.002]
[1768832606992,1.29410095,3213.2,3212.8,0.002]
[1768832611328,1.29230031,3213.1,3212.8,0.002]
[1768832612531,1.29230031,3213.1,3212.5,0.00280136]
[1768832615707,1.29230031,3213.1,3212.5,1.20738442]
[1768832618194,0.00180064,3213.2,3212.5,1.20738442]
[1768832618396,0.00180064,3213.2,3212.6,1.20458306]
[1768832618594,1.29410095,3213.2,3212.6,1.20458306]
[1768832618833,1.29410095,3213.2,3212.7,1.20458306]
[1768832619037,1.29410095,3213.2,3212.8,0.002]
[1768832619198,0.00180064,3213.2,3212.8,1.20658306]
[1768832619397,1.29410095,3213.2,3212.8,0.002]
[1768832620200,1.23848364,3213.1,3212.8,0.002]
[1768832620417,1.23848364,3212.9,3212.5,0.00280136]
[1768832622443,1.24028428,3213.2,3212.6,1.24532256]
[1768832626466,1.23848364,3213.1,3212.5,0.00280136]
[1768832627174,1.23848364,3213.0,3212.5,0.00280136]
[1768832630939,1.23848364,3213.0,3212.8,0.002]
[1768832631162,1.23848364,3212.9,3212.8,0.002]
[1768832632232,1.23848364,3213.1,3212.8,0.002]
[1768832632862,1.23848364,3213.1,3212.5,1.32525244]
[1768832640064,1.2456622,3213.0,3212.5,0.00280136]
[1768832640762,1.2456622,3212.9,3212.5,0.00280136]
[1768832641239,1.2456622,3212.8,3212.2,0.00080176]
[1768832642968,6.25227411,3212.9,3212.2,0.00080176]
[1768832642969,1.2456622,3212.6,3212.2,0.00080176]
[1768832643350,1.2456622,3212.6,3212.5,0.002]
[1768832643669,1.2456622,3212.6,3211.9,0.00080096]
[1768832643670,1.2456622,3212.5,3211.9,0.00080096]
[1768832643849,1.2456622,3212.2,3211.9,0.00080096]
[1768832644674,1.2456622,3212.2,3211.6,0.002]
[1768832644865,1.2456622,3212.0,3211.6,0.002]
[1768832645671,1.246463,3211.9,3211.3,0.002]
[1768832646771,1.2456622,3211.7,3211.3,0.002]
[1768832646973,1.4215085,3211.7,3211.3,0.002]
[1768832648761,1.24646468,3211.6,3211.0,0.002]
[1768832651575,1.24646468,3211.6,3211.0,0.14897592]
[1768832653066,1.24646468,3211.6,3211.1,0.14805518]
[1768832654460,0.00080248,3211.6,3211.1,0.14805518]
[1768832654656,0.00080248,3211.6,3211.0,6.23050259]
[1768832654657,0.00080248,3211.6,3211.3,0.1500372]
[1768832655174,0.00080248,3211.6,3211.3,3.2660209]
[1768832655361,0.00180248,3211.6,3211.4,0.15199645]
[1768832656588,0.00180248,3211.6,3211.3,0.002]
[1768832656783,1.24746468,3211.6,3211.3,0.002]
[1768832659791,0.00180248,3211.6,3211.3,0.002]
[1768832659987,0.00180248,3211.6,3211.3,0.16346029]
[1768832661402,0.00180248,3211.6,3211.3,0.002]
[1768832662096,1.24746468,3211.6,3211.3,0.002]
[1768832662872,1.24602402,3211.5,3211.3,0.002]
[1768832663267,1.24602402,3211.4,3211.3,0.002]
[1768832665181,1.24602402,3211.4,3211.1,0.512]
[1768832667125,0.001,3211.3,3211.1,0.512]
[1768832667279,1.24702402,3211.3,3211.1,0.512]
[1768832670525,1.24702402,3211.3,3211.0,0.002]
[1768832670819,1.47355118,3211.3,3211.0,0.002]
[1768832671219,0.001,3211.3,3211.0,0.18406279]
[1768832671725,1.2478265,3211.6,3211.1,0.1836542]
[1768832671938,0.00180248,3211.6,3211.1,0.1836542]
[1768832672092,0.0008008,3211.9,3211.3,0.1836542]
[1768832673323,1.24682482,3211.9,3211.3,0.1836542]
[1768832673636,1.24602402,3211.8,3211.3,0.1836542]
[1768832678730,0.001,3211.5,3211.3,0.1836542]
[1768832679029,1.24702402,3211.5,3211.2,0.51280256]
[1768832686210,0.001,3211.5,3211.2,0.51280256]
[1768832689352,0.001,3211.5,3211.2,0.00080256]
[1768832689846,1.32514914,3211.5,3211.2,0.00080256]
[1768832691918,0.001,3211.5,3211.2,0.21396031]
[1768832693453,0.001,3211.5,3211.2,0.00080256]
[1768832693626,1.25902798,3211.5,3211.2,0.00080256]
[1768832694247,1.25802798,3211.4,3210.9,0.00280256]
[1768832694448,1.25802798,3211.2,3210.9,0.00280256]
[1768832697258,1.25802798,3211.1,3210.9,0.00280256]
[1768832698059,1.25802798,3211.1,3210.6,0.00080184]
[1768832698259,1.25802798,3210.8,3210.4,0.514]
[1768832698484,1.25802798,3210.5,3210.4,0.514]
[1768832698683,1.25802798,3210.5,3210.4,0.002]
[1768832698684,1.9659304,3210.5,3210.4,0.002]
[1768832700455,1.25802798,3210.4,3210.0,0.002]
[1768832701286,1.25802798,3210.4,3210.0,0.22849523]
[1768832701947,1.25802798,3210.4,3210.0,0.002]
[1768832702350,1.25802798,3210.2,3209.7,0.002]
[1768832702546,1.25802798,3209.9,3209.3,3.63069218]
[1768832702997,1.25802798,3209.9,3209.3,0.74349253]
[1768832703987,1.25802798,3209.9,3209.3,3.8594281]
[1768832704979,1.25802798,3209.9,3209.4,0.23084899]
[1768832706070,1.25802798,3209.9,3209.3,0.5148016]
[1768832706268,1.25802798,3209.6,3209.3,0.5148016]
[1768832707081,1.25802798,3209.6,3209.3,0.0028016]
[1768832708568,1.25802798,3209.4,3209.0,0.0008012]
[1768832709672,1.25802798,3209.2,3208.8,0.002]
[1768832709926,1.25802798,3209.0,3208.6,0.00080168]
[1768832711738,1.25802798,3209.0,3208.6,0.24263518]
[1768832711895,1.25802798,3209.2,3208.6,0.24263518]
[1768832712291,1.25802798,3209.2,3208.7,0.24282296]
[1768832713523,1.25802798,3209.2,3208.6,0.00080168]
[1768832713732,1.25802798,3209.1,3208.6,0.00080168]
[1768832714725,1.25802798,3209.0,3208.9,0.002]
[1768832714933,1.25882966,3209.0,3208.5,0.002]
[1768832715096,1.25882966,3209.0,3208.2,0.00176718]
[1768832715421,1.25802798,3208.7,3208.2,0.00080104]
[1768832715633,1.25802798,3208.6,3208.2,0.00080104]
[1768832718126,1.25802798,3208.5,3208.2,0.00080104]
[1768832719501,1.77102798,3208.9,3208.2,0.00552199]
[1768832719698,1.25802798,3208.9,3208.2,0.00552199]
[1768832720035,1.25802798,3208.9,3208.3,0.00563286]
[1768832720198,0.00080168,3209.0,3208.2,3.11774834]
[1768832720199,0.00080168,3209.0,3208.5,0.00563286]
[1768832722425,0.00080168,3209.0,3208.7,0.00757009]
[1768832724398,1.35342864,3209.0,3208.5,0.01039328]
[1768832725000,1.35342864,3209.0,3208.4,0.52431281]
[1768832725223,1.35342864,3209.0,3208.4,0.513]
[1768832726341,1.5400715,3209.0,3208.4,0.513]
[1768832726494,0.00080168,3209.0,3208.5,0.01222178]
[1768832727142,0.001,3208.7,3208.5,0.01222178]
[1768832729519,0.001,3208.7,3208.5,3.12892293]
[1768832729706,0.001,3208.7,3208.6,0.01488652]
[1768832729906,0.00080168,3209.0,3208.6,0.01488652]
[1768832730544,0.00080168,3209.0,3208.7,0.01575445]
[1768832732936,1.35342864,3209.0,3208.5,3.13497196]
[1768832733247,1.35342864,3209.0,3208.4,0.513]
[1768832733416,1.35342864,3209.0,3208.4,3.64806516]
[1768832733616,1.35342864,3209.0,3208.6,3.11654737]